fUST/lending_fUST_20260508
["ID","MTS","AMOUNT","RATE_DAILY","PERIOD"]
[421860714,1778242239000,-1111.02,0.00011506,2]
[421860703,1778242239000,-500.0,0.00011506,2]
[421860705,1778242239000,-246.05119383,0.00011506,2]
[421860707,1778242239000,-633.19,0.00011506,2]
[421860708,1778242239000,-500.0,0.00011506,2]
[421860704,1778242239000,-500.0,0.00011506,2]
[421860706,1778242239000,-500.0,0.00011506,2]
[421860701,1778242239000,-500.0,0.00011506,2]
[421860719,1778242239000,-500.0,0.00011506,2]
[421860712,1778242239000,-500.0,0.00011506,2]
[421860711,1778242239000,-500.0,0.00011506,2]
[421860713,1778242239000,-500.0,0.00011506,2]
[421860718,1778242239000,-1297.48,0.00011506,2]
[421860688,1778242239000,-1411.0,0.00011348,2]
[421860710,1778242239000,-784.52,0.00011506,2]
[421860687,1778242239000,-2215.0,0.00011348,2]
[421860666,1778242239000,-500.0,0.00011232,2]
[421860685,1778242239000,-500.0,0.00011232,2]
[421860717,1778242239000,-500.0,0.00011506,2]
[421860657,1778242239000,-1111.02,0.00011232,2]
[421860658,1778242239000,-6457.91,0.00011232,2]
[421860660,1778242239000,-500.0,0.00011232,2]
[421860670,1778242239000,-500.0,0.00011232,2]
[421860659,1778242239000,-667.49,0.00011232,2]
[421860663,1778242239000,-698.91,0.00011232,2]
[421860661,1778242239000,-1297.48,0.00011232,2]
[421860668,1778242239000,-874.2,0.00011232,2]
[421860667,1778242239000,-500.0,0.00011232,2]
[421860662,1778242239000,-500.0,0.00011232,2]
[421860669,1778242239000,-548.66,0.00011232,2]
[421860664,1778242239000,-530.35,0.00011232,2]
[421860686,1778242239000,-2103.05951847,0.0001128,2]
[421860665,1778242239000,-500.0,0.00011232,2]
[421860671,1778242239000,-500.0,0.00011232,2]
[421860675,1778242239000,-1908.09,0.00011232,2]
[421860673,1778242239000,-500.0,0.00011232,2]
[421860677,1778242239000,-1024.44,0.00011232,2]
[421860676,1778242239000,-782.59,0.00011232,2]
[421860674,1778242239000,-500.0,0.00011232,2]
[421860678,1778242239000,-500.0,0.00011232,2]
[421860684,1778242239000,-500.0,0.00011232,2]
[421860679,1778242239000,-1239.33,0.00011232,2]
[421860680,1778242239000,-500.0,0.00011232,2]
[421860681,1778242239000,-500.0,0.00011232,2]
[421860682,1778242239000,-527.84,0.00011232,2]
[421860683,1778242239000,-500.0,0.00011232,2]
[421860672,1778242239000,-500.0,0.00011232,2]
[421860716,1778242239000,-667.49,0.00011506,2]
[421860702,1778242239000,-500.0,0.00011506,2]
[421860720,1778242239000,-698.91,0.00011506,2]
[421860758,1778242239000,-500.0,0.0001178,2]
[421860760,1778242239000,-500.0,0.0001178,2]
[421860759,1778242239000,-297.23,0.0001178,2]
[421860761,1778242239000,-264.93,0.0001178,2]
[421860762,1778242239000,-500.0,0.0001178,2]
[421860763,1778242239000,-500.0,0.0001178,2]
[421860766,1778242239000,-500.0,0.0001178,2]
[421860764,1778242239000,-633.19,0.0001178,2]
[421860768,1778242239000,-500.0,0.0001178,2]
[421860765,1778242239000,-500.0,0.0001178,2]
[421860767,1778242239000,-784.52,0.0001178,2]
[421860769,1778242239000,-500.0,0.0001178,2]
[421860770,1778242239000,-500.0,0.0001178,2]
[421860757,1778242239000,-500.0,0.0001178,2]
[421860772,1778242239000,-6457.91,0.0001178,2]
[421860773,1778242239000,-667.49,0.0001178,2]
[421860771,1778242239000,-1111.02,0.0001178,2]
[421860776,1778242239000,-500.0,0.0001178,2]
[421860778,1778242239000,-530.35,0.0001178,2]
[421860777,1778242239000,-698.91,0.0001178,2]
[421860779,1778242239000,-500.0,0.0001178,2]
[421860780,1778242239000,-500.0,0.0001178,2]
[421860786,1778242239000,-500.0,0.0001178,2]
[421860785,1778242239000,-500.0,0.0001178,2]
[421860782,1778242239000,-874.2,0.0001178,2]
[421860781,1778242239000,-500.0,0.0001178,2]
[421860783,1778242239000,-548.66,0.0001178,2]
[421860715,1778242239000,-6457.91,0.00011506,2]
[421860775,1778242239000,-1297.48,0.0001178,2]
[421860756,1778242239000,-514.79,0.0001178,2]
[421860774,1778242239000,-500.0,0.0001178,2]
[421860745,1778242239000,-500.0,0.00011506,2]
[421860751,1778242239000,-7572.7846095,0.00011586,2]
[421860721,1778242239000,-530.35,0.00011506,2]
[421860723,1778242239000,-500.0,0.00011506,2]
[421860724,1778242239000,-500.0,0.00011506,2]
[421860725,1778242239000,-874.2,0.00011506,2]
[421860726,1778242239000,-548.66,0.00011506,2]
[421860727,1778242239000,-500.0,0.00011506,2]
[421860737,1778242239000,-500.0,0.00011506,2]
[421860729,1778242239000,-500.0,0.00011506,2]
[421860732,1778242239000,-1908.09,0.00011506,2]
[421860735,1778242239000,-500.0,0.00011506,2]
[421860728,1778242239000,-500.0,0.00011506,2]
[421860784,1778242239000,-500.0,0.0001178,2]
[421860731,1778242239000,-500.0,0.00011506,2]
[421860722,1778242239000,-500.0,0.00011506,2]
[421860743,1778242239000,-500.0,0.00011506,2]
[421860730,1778242239000,-500.0,0.00011506,2]
[421860749,1778242239000,-420.0,0.00011552,2]
[421860750,1778242239000,-232.597,0.00011561,2]
[421860747,1778242239000,-260.4178,0.00011506,2]
[421860754,1778242239000,-500.0,0.00011722,2]
[421860741,1778242239000,-500.0,0.00011506,2]
[421860753,1778242239000,-302.06309761,0.00011671,2]
[421860738,1778242239000,-500.0,0.00011506,2]
[421860739,1778242239000,-527.84,0.00011506,2]
[421860736,1778242239000,-1239.33,0.00011506,2]
[421860733,1778242239000,-782.59,0.00011506,2]
[421860734,1778242239000,-1024.44,0.00011506,2]
[421860755,1778242239000,-882.9944,0.0001178,2]
[421860827,1778242240000,-548.66,0.00012054,2]
[421860833,1778242240000,-1908.09,0.00012054,2]
[421860834,1778242240000,-782.59,0.00012054,2]
[421860831,1778242240000,-500.0,0.00012054,2]
[421860838,1778242240000,-500.0,0.00012054,2]
[421860828,1778242240000,-446.28,0.00012054,2]
[421860822,1778242240000,-530.35,0.00012054,2]
[421860823,1778242240000,-500.0,0.00012054,2]
[421860824,1778242240000,-500.0,0.00012054,2]
[421860825,1778242240000,-211.49,0.00012054,2]
[421860820,1778242240000,-500.0,0.00012054,2]
[421860830,1778242240000,-500.0,0.00012054,2]
[421860817,1778242240000,-667.49,0.00012054,2]
[421860826,1778242240000,-874.2,0.00012054,2]
[421860836,1778242240000,-500.0,0.00012054,2]
[421860840,1778242240000,-527.84,0.00012054,2]
[421860829,1778242240000,-225.55,0.00012054,2]
[421860835,1778242240000,-1024.44,0.00012054,2]
[421860837,1778242240000,-1239.33,0.00012054,2]
[421860839,1778242240000,-500.0,0.00012054,2]
[421860841,1778242240000,-500.0,0.00012054,2]
[421860846,1778242240000,-325.7485516,0.00012298,2]
[421860843,1778242240000,-500.0,0.00012054,2]
[421860849,1778242240000,-325.7485517,0.00012298,2]
[421860844,1778242240000,-456.3275978,0.00012298,2]
[421860850,1778242240000,-882.9944,0.00012328,2]
[421860847,1778242240000,-325.7485516,0.00012298,2]
[421860842,1778242240000,-500.0,0.00012054,2]
[421860845,1778242240000,-457.7977156,0.00012298,2]
[421860832,1778242240000,-500.0,0.00012054,2]
[421860815,1778242240000,-1111.02,0.00012054,2]
[421860787,1778242240000,-500.0,0.0001178,2]
[421860821,1778242240000,-698.91,0.00012054,2]
[421860788,1778242240000,-500.0,0.0001178,2]
[421860790,1778242240000,-782.59,0.0001178,2]
[421860789,1778242240000,-1908.09,0.0001178,2]
[421860791,1778242240000,-1024.44,0.0001178,2]
[421860792,1778242240000,-500.0,0.0001178,2]
[421860794,1778242240000,-500.0,0.0001178,2]
[421860795,1778242240000,-500.0,0.0001178,2]
[421860797,1778242240000,-500.0,0.0001178,2]
[421860793,1778242240000,-1239.33,0.0001178,2]
[421860796,1778242240000,-527.84,0.0001178,2]
[421860799,1778242240000,-500.0,0.0001178,2]
[421860798,1778242240000,-500.0,0.0001178,2]
[421860800,1778242240000,-9112.32512093,0.00011843,2]
[421860801,1778242240000,-882.9944,0.00012054,2]
[421860802,1778242240000,-514.79,0.00012054,2]
[421860806,1778242240000,-364.54,0.00012054,2]
[421860808,1778242240000,-633.19,0.00012054,2]
[421860811,1778242240000,-784.52,0.00012054,2]
[421860810,1778242240000,-500.0,0.00012054,2]
[421860805,1778242240000,-500.0,0.00012054,2]
[421860807,1778242240000,-500.0,0.00012054,2]
[421860812,1778242240000,-500.0,0.00012054,2]
[421860804,1778242240000,-500.0,0.00012054,2]
[421860803,1778242240000,-500.0,0.00012054,2]
[421860809,1778242240000,-500.0,0.00012054,2]
[421860813,1778242240000,-500.0,0.00012054,2]
[421860814,1778242240000,-500.0,0.00012054,2]
[421860818,1778242240000,-500.0,0.00012054,2]
[421860819,1778242240000,-1297.48,0.00012054,2]
[421860816,1778242240000,-6457.91,0.00012054,2]
[421860848,1778242240000,-151.0,0.00012298,2]
[421860851,1778242240000,-514.79,0.00012328,2]
[421860853,1778242240000,-500.0,0.00012328,2]
[421860886,1778242240000,-500.0,0.00012328,2]
[421860888,1778242240000,-564.48,0.00012328,2]
[421860890,1778242240000,-500.0,0.00012328,2]
[421860887,1778242240000,-527.84,0.00012328,2]
[421860894,1778242240000,-454.23,0.00012555,2]
[421860895,1778242240000,-10000.0,0.000126,2]
[421860899,1778242240000,-500.0,0.00012602,2]
[421860897,1778242240000,-773.8739,0.00012602,2]
[421860896,1778242240000,-160.0,0.000126,4]
[421860900,1778242240000,-500.0,0.00012602,2]
[421860898,1778242240000,-514.79,0.00012602,2]
[421860904,1778242240000,-500.0,0.00012602,2]
[421860905,1778242240000,-438.21,0.00012602,2]
[421860902,1778242240000,-500.0,0.00012602,2]
[421860903,1778242240000,-633.19,0.00012602,2]
[421860906,1778242240000,-784.52,0.00012602,2]
[421860907,1778242240000,-500.0,0.00012602,2]
[421860901,1778242240000,-500.0,0.00012602,2]
[421860909,1778242240000,-500.0,0.00012602,2]
[421860908,1778242240000,-500.0,0.00012602,2]
[421860912,1778242240000,-667.49,0.00012602,2]
[421860914,1778242240000,-1297.48,0.00012602,2]
[421860913,1778242240000,-500.0,0.00012602,2]
[421860910,1778242240000,-1111.02,0.00012602,2]
[421860911,1778242240000,-6457.91,0.00012602,2]
[421860916,1778242240000,-698.91,0.00012602,2]
[421860918,1778242240000,-500.0,0.00012602,2]
[421860917,1778242240000,-530.35,0.00012602,2]
[421860852,1778242240000,-500.0,0.00012328,2]
[421860893,1778242240000,-512.95320328,0.00012508,2]
[421860883,1778242240000,-500.0,0.00012328,2]
[421860915,1778242240000,-500.0,0.00012602,2]
[421860892,1778242240000,-10000.0,0.000125,2]
[421860891,1778242240000,-174.33936917,0.00012365,2]
[421860856,1778242240000,-633.19,0.00012328,2]
[421860859,1778242240000,-784.52,0.00012328,2]
[421860857,1778242240000,-500.0,0.00012328,2]
[421860858,1778242240000,-500.0,0.00012328,2]
[421860860,1778242240000,-500.0,0.00012328,2]
[421860861,1778242240000,-500.0,0.00012328,2]
[421860863,1778242240000,-1111.02,0.00012328,2]
[421860862,1778242240000,-500.0,0.00012328,2]
[421860854,1778242240000,-500.0,0.00012328,2]
[421860864,1778242240000,-6457.91,0.00012328,2]
[421860865,1778242240000,-667.49,0.00012328,2]
[421860866,1778242240000,-500.0,0.00012328,2]
[421860880,1778242240000,-1908.09,0.00012328,2]
[421860879,1778242240000,-500.0,0.00012328,2]
[421860855,1778242240000,-500.0,0.00012328,2]
[421860877,1778242240000,-500.0,0.00012328,2]
[421860874,1778242240000,-500.0,0.00012328,2]
[421860884,1778242240000,-1239.33,0.00012328,2]
[421860885,1778242240000,-500.0,0.00012328,2]
[421860889,1778242240000,-500.0,0.00012328,2]
[421860882,1778242240000,-1024.44,0.00012328,2]
[421860873,1778242240000,-500.0,0.00012328,2]
[421860881,1778242240000,-782.59,0.00012328,2]
[421860876,1778242240000,-548.66,0.00012328,2]
[421860867,1778242240000,-1297.48,0.00012328,2]
[421860875,1778242240000,-874.2,0.00012328,2]
[421860878,1778242240000,-500.0,0.00012328,2]
[421860868,1778242240000,-500.0,0.00012328,2]
[421860870,1778242240000,-698.91,0.00012328,2]
[421860872,1778242240000,-530.35,0.00012328,2]
[421860961,1778242241000,-548.66,0.00012876,2]
[421860964,1778242241000,-500.0,0.00012876,2]
[421860962,1778242241000,-500.0,0.00012876,2]
[421860963,1778242241000,-500.0,0.00012876,2]
[421860960,1778242241000,-874.2,0.00012876,2]
[421860957,1778242241000,-530.35,0.00012876,2]
[421860958,1778242241000,-517.58,0.00012876,2]
[421860956,1778242241000,-698.91,0.00012876,2]
[421860955,1778242241000,-198.41,0.00012876,2]
[421860954,1778242241000,-1297.48,0.00012876,2]
[421860950,1778242241000,-1111.02,0.00012876,2]
[421860959,1778242241000,-500.0,0.00012876,2]
[421860965,1778242241000,-1908.09,0.00012876,2]
[421860983,1778242241000,-151.0,0.0001312,2]
[421860967,1778242241000,-1024.44,0.00012876,2]
[421860968,1778242241000,-500.0,0.00012876,2]
[421860970,1778242241000,-500.0,0.00012876,2]
[421860971,1778242241000,-500.0,0.00012876,2]
[421860969,1778242241000,-1239.33,0.00012876,2]
[421860973,1778242241000,-500.0,0.00012876,2]
[421860984,1778242241000,-13730.94665565,0.00013128,2]
[421860972,1778242241000,-527.84,0.00012876,2]
[421860985,1778242241000,-514.79,0.0001315,2]
[421860974,1778242241000,-500.0,0.00012876,2]
[421860978,1778242241000,-822.0,0.00012954,2]
[421860982,1778242241000,-151.0,0.0001312,2]
[421860977,1778242241000,-822.0,0.00012893,2]
[421860952,1778242241000,-667.49,0.00012876,2]
[421860966,1778242241000,-782.59,0.00012876,2]
[421860953,1778242241000,-500.0,0.00012876,2]
[421860947,1778242241000,-500.0,0.00012876,2]
[421860949,1778242241000,-500.0,0.00012876,2]
[421860919,1778242241000,-500.0,0.00012602,2]
[421860921,1778242241000,-548.66,0.00012602,2]
[421860920,1778242241000,-874.2,0.00012602,2]
[421860922,1778242241000,-500.0,0.00012602,2]
[421860924,1778242241000,-500.0,0.00012602,2]
[421860980,1778242241000,-600.26519672,0.00013,2]
[421860925,1778242241000,-1908.09,0.00012602,2]
[421860923,1778242241000,-500.0,0.00012602,2]
[421860929,1778242241000,-1239.33,0.00012602,2]
[421860927,1778242241000,-1024.44,0.00012602,2]
[421860928,1778242241000,-500.0,0.00012602,2]
[421860931,1778242241000,-500.0,0.00012602,2]
[421860930,1778242241000,-500.0,0.00012602,2]
[421860934,1778242241000,-500.0,0.00012602,2]
[421860933,1778242241000,-500.0,0.00012602,2]
[421860932,1778242241000,-527.84,0.00012602,2]
[421860939,1778242241000,-514.79,0.00012876,2]
[421860936,1778242241000,-587.0,0.000127,2]
[421860935,1778242241000,-12191.40614408,0.00012614,2]
[421860940,1778242241000,-500.0,0.00012876,2]
[421860937,1778242241000,-160.0,0.00012844,3]
[421860938,1778242241000,-12487.41089988,0.00012871,2]
[421860948,1778242241000,-500.0,0.00012876,2]
[421860946,1778242241000,-784.52,0.00012876,2]
[421860943,1778242241000,-500.0,0.00012876,2]
[421860941,1778242241000,-500.0,0.00012876,2]
[421860942,1778242241000,-500.0,0.00012876,2]
[421860944,1778242241000,-633.19,0.00012876,2]
[421860945,1778242241000,-500.0,0.00012876,2]
[421860951,1778242241000,-6457.91,0.00012876,2]
[421860976,1778242241000,-822.0,0.00012893,2]
[421860926,1778242241000,-782.59,0.00012602,2]
[421860975,1778242241000,-822.0,0.00012893,2]
[421861016,1778242241000,-527.84,0.0001315,2]
[421861019,1778242241000,-1000.0,0.000132,5]
[421861015,1778242241000,-500.0,0.0001315,2]
[421861020,1778242241000,-186.18086464,0.00013233,14]
[421861021,1778242241000,-14994.78309201,0.00013385,2]
[421861018,1778242241000,-500.0,0.0001315,2]
[421861022,1778242241000,-160.0,0.00013388,5]
[421861026,1778242241000,-500.0,0.00013424,2]
[421861036,1778242241000,-6457.91,0.00013424,2]
[421861025,1778242241000,-500.0,0.00013424,2]
[421861027,1778242241000,-500.0,0.00013424,2]
[421861037,1778242241000,-667.49,0.00013424,2]
[421861028,1778242241000,-500.0,0.00013424,2]
[421861032,1778242241000,-500.0,0.00013424,2]
[421861033,1778242241000,-500.0,0.00013424,2]
[421861031,1778242241000,-784.52,0.00013424,2]
[421861034,1778242241000,-500.0,0.00013424,2]
[421861029,1778242241000,-633.19,0.00013424,2]
[421861035,1778242241000,-1111.02,0.00013424,2]
[421861030,1778242241000,-500.0,0.00013424,2]
[421861039,1778242241000,-1297.48,0.00013424,2]
[421861041,1778242241000,-530.35,0.00013424,2]
[421861042,1778242241000,-500.0,0.00013424,2]
[421861044,1778242241000,-548.66,0.00013424,2]
[421861038,1778242241000,-500.0,0.00013424,2]
[421861043,1778242241000,-874.2,0.00013424,2]
[421861040,1778242241000,-698.91,0.00013424,2]
[421861046,1778242241000,-500.0,0.00013424,2]
[421860979,1778242241000,-456.2418086,0.00012989,2]
[421861017,1778242241000,-500.0,0.0001315,2]
[421861024,1778242241000,-514.79,0.00013424,2]
[421861045,1778242241000,-500.0,0.00013424,2]
[421861012,1778242241000,-500.0,0.0001315,2]
[421860981,1778242241000,-160.0,0.00013116,4]
[421860986,1778242241000,-500.0,0.0001315,2]
[421860988,1778242241000,-500.0,0.0001315,2]
[421860990,1778242241000,-633.19,0.0001315,2]
[421860987,1778242241000,-500.0,0.0001315,2]
[421860992,1778242241000,-784.52,0.0001315,2]
[421860995,1778242241000,-500.0,0.0001315,2]
[421860991,1778242241000,-500.0,0.0001315,2]
[421861023,1778242241000,-1891.87609168,0.00013424,2]
[421860993,1778242241000,-500.0,0.0001315,2]
[421860994,1778242241000,-500.0,0.0001315,2]
[421860997,1778242241000,-6457.91,0.0001315,2]
[421860996,1778242241000,-1111.02,0.0001315,2]
[421861010,1778242241000,-782.59,0.0001315,2]
[421860989,1778242241000,-500.0,0.0001315,2]
[421861009,1778242241000,-1908.09,0.0001315,2]
[421861014,1778242241000,-506.25,0.0001315,2]
[421860999,1778242241000,-500.0,0.0001315,2]
[421861013,1778242241000,-1239.33,0.0001315,2]
[421861005,1778242241000,-548.66,0.0001315,2]
[421861007,1778242241000,-500.0,0.0001315,2]
[421861006,1778242241000,-500.0,0.0001315,2]
[421861002,1778242241000,-530.35,0.0001315,2]
[421860998,1778242241000,-667.49,0.0001315,2]
[421861008,1778242241000,-500.0,0.0001315,2]
[421861003,1778242241000,-500.0,0.0001315,2]
[421861001,1778242241000,-698.91,0.0001315,2]
[421861000,1778242241000,-1297.48,0.0001315,2]
[421861011,1778242241000,-1024.44,0.0001315,2]
[421861004,1778242241000,-874.2,0.0001315,2]
[421861091,1778242242000,-620.71,0.00013698,2]
[421861089,1778242242000,-620.71,0.00013698,2]
[421861088,1778242242000,-620.71,0.00013698,2]
[421861087,1778242242000,-620.71,0.00013698,2]
[421861085,1778242242000,-620.71,0.00013698,2]
[421861073,1778242242000,-620.71,0.00013698,2]
[421861086,1778242242000,-620.71,0.00013698,2]
[421861081,1778242242000,-620.71,0.00013698,2]
[421861079,1778242242000,-620.71,0.00013698,2]
[421861080,1778242242000,-620.71,0.00013698,2]
[421861077,1778242242000,-620.71,0.00013698,2]
[421861096,1778242242000,-500.0,0.00013698,2]
[421861092,1778242242000,-620.71,0.00013698,2]
[421861104,1778242242000,-767.4,0.00013698,2]
[421861095,1778242242000,-514.79,0.00013698,2]
[421861094,1778242242000,-620.88891186,0.00013698,2]
[421861090,1778242242000,-620.71,0.00013698,2]
[421861097,1778242242000,-767.4,0.00013698,2]
[421861099,1778242242000,-767.4,0.00013698,2]
[421861100,1778242242000,-767.4,0.00013698,2]
[421861101,1778242242000,-767.4,0.00013698,2]
[421861102,1778242242000,-767.4,0.00013698,2]
[421861106,1778242242000,-767.4,0.00013698,2]
[421861105,1778242242000,-767.4,0.00013698,2]
[421861103,1778242242000,-767.4,0.00013698,2]
[421861108,1778242242000,-767.4,0.00013698,2]
[421861078,1778242242000,-620.71,0.00013698,2]
[421861093,1778242242000,-620.71,0.00013698,2]
[421861076,1778242242000,-620.71,0.00013698,2]
[421861056,1778242242000,-500.0,0.00013424,2]
[421861084,1778242242000,-620.71,0.00013698,2]
[421861109,1778242242000,-767.4,0.00013698,2]
[421861049,1778242242000,-782.59,0.00013424,2]
[421861048,1778242242000,-1908.09,0.00013424,2]
[421861047,1778242242000,-500.0,0.00013424,2]
[421861051,1778242242000,-500.0,0.00013424,2]
[421861061,1778242242000,-160.01365869,0.000136,7]
[421861050,1778242242000,-1024.44,0.00013424,2]
[421861052,1778242242000,-1239.33,0.00013424,2]
[421861063,1778242242000,-500.0,0.00013698,2]
[421861062,1778242242000,-160.0,0.0001366,6]
[421861053,1778242242000,-500.0,0.00013424,2]
[421861054,1778242242000,-527.84,0.00013424,2]
[421861055,1778242242000,-500.0,0.00013424,2]
[421861074,1778242242000,-620.71,0.00013698,2]
[421861058,1778242242000,-173.74,0.000135,14]
[421861057,1778242242000,-5000.0,0.000135,2]
[421861059,1778242242000,-174.33936917,0.00013598,2]
[421861064,1778242242000,-500.0,0.00013698,2]
[421861065,1778242242000,-500.0,0.00013698,2]
[421861067,1778242242000,-500.0,0.00013698,2]
[421861069,1778242242000,-11177.99022698,0.00013698,3]
[421861068,1778242242000,-522.32628688,0.00013698,2]
[421861070,1778242242000,-620.71,0.00013698,2]
[421861066,1778242242000,-500.0,0.00013698,2]
[421861071,1778242242000,-620.71,0.00013698,2]
[421861072,1778242242000,-620.71,0.00013698,2]
[421861082,1778242242000,-620.71,0.00013698,2]
[421861083,1778242242000,-620.71,0.00013698,2]
[421861060,1778242242000,-50962.9,0.000136,2]
[421861098,1778242242000,-767.4,0.00013698,2]
[421861107,1778242242000,-767.4,0.00013698,2]
[421861120,1778242242000,-767.4,0.00013698,2]
[421861154,1778242242000,-500.0,0.00013698,2]
[421861147,1778242242000,-500.0,0.00013698,2]
[421861149,1778242242000,-453.17191654,0.00013698,2]
[421861146,1778242242000,-500.0,0.00013698,2]
[421861150,1778242242000,-500.0,0.00013698,2]
[421861152,1778242242000,-6466.62210747,0.00013698,3]
[421861151,1778242242000,-500.0,0.00013698,2]
[421861156,1778242242000,-500.0,0.00013698,2]
[421861167,1778242242000,-1111.02,0.00013698,2]
[421861168,1778242242000,-6457.91,0.00013698,2]
[421861166,1778242242000,-154.11777834,0.00013698,2]
[421861159,1778242242000,-500.0,0.00013698,2]
[421861158,1778242242000,-500.0,0.00013698,2]
[421861153,1778242242000,-633.19,0.00013698,2]
[421861155,1778242242000,-784.52,0.00013698,2]
[421861163,1778242242000,-500.0,0.00013698,2]
[421861165,1778242242000,-500.0,0.00013698,2]
[421861162,1778242242000,-500.0,0.00013698,2]
[421861161,1778242242000,-500.0,0.00013698,2]
[421861164,1778242242000,-500.0,0.00013698,2]
[421861170,1778242242000,-184.18,0.00013698,2]
[421861171,1778242242000,-1297.48,0.00013698,2]
[421861169,1778242242000,-667.49,0.00013698,2]
[421861172,1778242242000,-698.91,0.00013698,2]
[421861174,1778242242000,-500.0,0.00013698,2]
[421861175,1778242242000,-500.0,0.00013698,2]
[421861173,1778242242000,-500.0,0.00013698,2]
[421861176,1778242242000,-500.0,0.00013698,2]
[421861160,1778242242000,-500.0,0.00013698,2]
[421861145,1778242242000,-500.0,0.00013698,2]
[421861157,1778242242000,-332.39933123,0.00013698,2]
[421861143,1778242242000,-500.0,0.00013698,2]
[421861111,1778242242000,-767.4,0.00013698,2]
[421861148,1778242242000,-500.0,0.00013698,2]
[421861122,1778242242000,-767.4,0.00013698,2]
[421861110,1778242242000,-767.4,0.00013698,2]
[421861124,1778242242000,-767.4,0.00013698,2]
[421861125,1778242242000,-767.4871428,0.00013698,2]
[421861118,1778242242000,-767.4,0.00013698,2]
[421861114,1778242242000,-767.4,0.00013698,2]
[421861127,1778242242000,-874.39418742,0.00013698,2]
[421861112,1778242242000,-767.4,0.00013698,2]
[421861116,1778242242000,-767.4,0.00013698,2]
[421861128,1778242242000,-500.0,0.00013698,2]
[421861126,1778242242000,-1000.0,0.00013698,2]
[421861134,1778242242000,-227.082544,0.00013698,2]
[421861113,1778242242000,-767.4,0.00013698,2]
[421861133,1778242242000,-500.0,0.00013698,2]
[421861135,1778242242000,-500.0,0.00013698,2]
[421861139,1778242242000,-500.0,0.00013698,2]
[421861132,1778242242000,-500.0,0.00013698,2]
[421861138,1778242242000,-543.5018298,0.00013698,2]
[421861142,1778242242000,-500.0,0.00013698,2]
[421861141,1778242242000,-500.0,0.00013698,2]
[421861130,1778242242000,-500.0,0.00013698,2]
[421861140,1778242242000,-500.0,0.00013698,2]
[421861136,1778242242000,-500.0,0.00013698,2]
[421861131,1778242242000,-500.0,0.00013698,2]
[421861129,1778242242000,-500.0,0.00013698,2]
[421861137,1778242242000,-500.0,0.00013698,2]
[421861144,1778242242000,-500.0,0.00013698,2]
[421861216,1778242243000,-500.0,0.00013698,2]
[421861222,1778242243000,-500.0,0.00013698,2]
[421861220,1778242243000,-1024.44,0.00013698,2]
[421861215,1778242243000,-500.0,0.00013698,2]
[421861224,1778242243000,-627.4479727,0.00013698,2]
[421861213,1778242243000,-500.0,0.00013698,2]
[421861219,1778242243000,-500.0,0.00013698,2]